bitfinex/quotes_SOLUSD_20220105
["timestamp","ask_amount","ask_price","bid_price","bid_amount"]
[1641421089454,7.92,151.43,151.33,0.09603432]
[1641421089656,9.9126,151.41,151.33,0.09603432]
[1641421089855,7.92,151.45,151.33,0.09603432]
[1641421090257,21.2101287,151.44,151.33,0.09603432]
[1641421090855,9.913,151.4,151.33,0.09603432]
[1641421091056,23.54479905,151.39,151.33,0.09603432]
[1641421093259,33.45829905,151.39,151.33,0.09603432]
[1641421093861,33.71829905,151.39,151.33,0.09603432]
[1641421094263,33.45829905,151.39,151.33,0.09603432]
[1641421094762,23.54479905,151.39,151.33,0.09603432]
[1641421096464,9.912,151.42,151.33,0.09603432]
[1641421096666,7.92,151.45,151.33,10.00703432]
[1641421097063,7.92,151.49,151.34,0.25]
[1641421097263,7.92,151.49,151.34,0.32]
[1641421097463,16.90669646,151.48,151.34,1.79315897]
[1641421097663,26.81479646,151.48,151.34,1.79315897]
[1641421097865,0.07,151.46,151.34,0.07]
[1641421098066,7.92,151.45,151.34,0.07]
[1641421098366,0.07,151.43,151.34,0.07]
[1641421098566,7.99,151.43,151.34,0.07]
[1641421098764,9.9154,151.39,151.34,0.07]
[1641421099067,10.1754,151.39,151.34,0.07]
[1641421099564,0.07,151.37,151.34,0.07]
[1641421101768,9.9848,151.37,151.34,0.07]
[1641421102068,10.2448,151.37,151.33,0.09603432]
[1641421102268,9.9848,151.37,151.33,0.09603432]
[1641421103966,9.9848,151.37,151.25,8.34153559]
[1641421104170,0.07,151.37,151.25,8.34153559]
[1641421104466,0.07,151.37,151.26,7.92]
[1641421104871,0.07,151.37,151.27,45.835]
[1641421105067,0.07,151.37,151.28,7.92]
[1641421105470,0.07,151.37,151.29,0.25]
[1641421105669,0.07,151.37,151.3,10.72341029]
[1641421106068,0.07,151.37,151.31,0.25]
[1641421106268,0.07,151.37,151.31,10.1605]
[1641421106676,0.07,151.37,151.31,10.4205]
[1641421107669,0.07,151.37,151.32,5.60490627]
[1641421107870,0.07,151.37,151.32,15.51490627]
[1641421108072,0.07,151.37,151.33,0.25]
[1641421108674,0.07,151.37,151.32,5.60490627]
[1641421109074,22.45756202,151.43,151.32,5.60490627]
[1641421109275,22.71756202,151.43,151.32,5.60490627]
[1641421109475,0.26,151.43,151.33,14.8222858]
[1641421109675,7.92,151.47,151.32,5.60490627]
[1641421110708,9.9102,151.44,151.33,0.25]
[1641421111102,10.1702,151.44,151.33,0.25]
[1641421111303,10.1702,151.44,151.32,5.60490627]
[1641421111902,21.88360808,151.43,151.32,5.60490627]
[1641421112106,9.9135,151.39,151.32,5.60490627]
[1641421112305,21.30672753,151.38,151.3,13.07934288]
[1641421113103,31.22092753,151.38,151.3,5.60490627]
[1641421113307,31.48092753,151.38,151.28,5.60490627]
[1641421115412,7.92,151.37,151.28,5.60490627]
[1641421115609,9.9178,151.33,151.25,2.47662932]
[1641421116111,10.1778,151.33,151.25,2.47662932]
[1641421116709,20.45464394,151.32,151.25,2.47662932]
[1641421116908,9.919,151.31,151.25,2.47662932]
[1641421117109,10.179,151.31,151.25,2.47662932]
[1641421121115,9.919,151.31,151.25,2.47662932]
[1641421122113,9.919,151.31,151.26,0.25]
[1641421123212,9.919,151.31,151.25,2.47662932]
[1641421124113,10.179,151.31,151.25,2.47662932]
[1641421124715,18.099,151.31,151.25,2.47662932]
[1641421125817,7.92,151.35,151.26,1.54315897]
[1641421126021,9.9184,151.34,151.26,1.54315897]
[1641421126218,7.92,151.37,151.27,0.25]
[1641421126419,7.92,151.37,151.27,1.72315897]
[1641421126619,20.35286371,151.36,151.27,1.72315897]
[1641421127019,20.35286371,151.36,151.28,0.07]
[1641421127820,20.35286371,151.36,151.25,0.07]
[1641421128119,20.35286371,151.36,151.29,0.9209]
[1641421128322,20.35286371,151.36,151.3,0.07]
[1641421129521,20.35286371,151.36,151.3,7.246]
[1641421129722,20.35286371,151.36,151.31,0.25]
[1641421130824,20.35286371,151.36,151.3,0.07]
[1641421131021,20.35286371,151.36,151.32,0.9209]
[1641421131223,19.85286371,151.36,151.32,0.9209]
[1641421133228,20.11286371,151.36,151.32,0.9209]
[1641421134125,20.11286371,151.36,151.27,0.9209]
[1641421134324,19.85286371,151.36,151.27,0.9209]
[1641421135226,20.11286371,151.36,151.27,0.9209]
[1641421136227,30.02976371,151.36,151.27,0.9209]
[1641421136427,25.18076371,151.36,151.27,0.9209]
[1641421137226,25.18076371,151.36,151.24,0.9209]
[1641421138431,25.18076371,151.36,151.24,1.1709]
[1641421138835,25.18076371,151.36,151.24,1.4309]
[1641421138836,15.00386371,151.36,151.24,1.4309]
[1641421139233,15.00386371,151.36,151.25,18.97146317]
[1641421139537,7.92,151.43,151.26,7.92]
[1641421139732,7.92,151.43,151.26,57.64225897]
[1641421139934,7.92,151.43,151.27,1.47315897]
[1641421140136,7.92,151.43,151.28,8.17]
[1641421140334,22.8516688,151.42,151.28,25.63862004]
[1641421140539,22.8516688,151.42,151.31,9.9105]
[1641421140935,22.8516688,151.42,151.32,0.25]
[1641421141333,22.8516688,151.42,151.32,1.72315897]
[1641421141533,22.8516688,151.42,151.32,1.98315897]
[1641421141735,22.8516688,151.42,151.32,11.63295897]
[1641421142735,22.8516688,151.42,151.32,1.72315897]
[1641421142934,23.1116688,151.42,151.32,0.25]
[1641421143137,22.8516688,151.42,151.31,0.25]
[1641421143435,23.1116688,151.42,151.31,1.1709]
[1641421143765,23.1116688,151.42,151.31,2.64405897]
[1641421143964,22.8516688,151.42,151.31,2.64405897]
[1641421144565,23.1116688,151.42,151.31,2.64405897]
[1641421144766,23.1116688,151.42,151.31,2.39405897]
[1641421145671,33.0242688,151.42,151.31,0.9209]
[1641421146472,40.9442688,151.42,151.31,0.9209]
[1641421146673,9.9168,151.36,151.31,0.9209]
[1641421146869,9.9168,151.36,151.26,7.07806524]
[1641421147070,10.1768,151.36,151.26,5.60490627]
[1641421147371,0.07,151.35,151.26,5.60490627]
[1641421147671,0.07,151.35,151.22,13.08186058]
[1641421147672,8.24,151.35,151.22,13.08186058]
[1641421147872,22.34190631,151.29,151.22,13.08186058]
[1641421148072,22.60190631,151.29,151.22,13.08186058]
[1641421148271,22.60190631,151.29,151.19,21.00186058]
[1641421149072,22.60190631,151.29,151.19,13.08186058]
[1641421149271,32.52300631,151.29,151.19,12.58186058]
[1641421149475,32.52300631,151.29,151.25,1.86972568]
[1641421150269,32.52300631,151.29,151.24,1.86972568]
[1641421152678,40.44300631,151.29,151.24,1.86972568]
[1641421153279,40.18300631,151.29,151.24,1.86972568]
[1641421154379,40.18300631,151.29,151.22,1.86972568]
[1641421154585,40.18300631,151.29,151.23,0.25]
[1641421154981,40.18300631,151.29,151.22,1.86972568]
[1641421155181,40.75300631,151.29,151.22,1.86972568]
[1641421155377,0.25,151.28,151.22,1.86972568]
[1641421155585,9.9265,151.25,151.22,1.86972568]
[1641421155782,7.92,151.24,151.18,0.07840909]
[1641421155983,8.18,151.24,151.18,0.07840909]
[1641421156182,7.92,151.24,151.18,0.07840909]
[1641421156583,21.89660453,151.23,151.18,0.07840909]
[1641421157186,9.9272,151.21,151.18,0.07840909]
[1641421157585,7.92,151.2,151.18,0.07840909]
[1641421157885,7.92,151.2,151.11,5.66368891]
[1641421157886,8.42,151.2,151.11,51.40846358]
[1641421158084,8.42,151.2,151.11,70.16126568]
[1641421158285,9.9295,151.16,151.11,69.66126568]
[1641421158487,7.92,151.15,151.11,69.66126568]
[1641421158886,7.92,151.15,151.11,6.568e-05]
[1641421159886,9.9323,151.13,151.11,6.568e-05]
[1641421160286,9.9323,151.13,151.0,103.73077791]
[1641421160688,9.9323,151.13,151.0,105.20393688]
[1641421162290,9.9323,151.13,151.0,103.73077791]
[1641421163012,9.9323,151.13,151.01,1.47315897]
[1641421163716,9.9323,151.13,151.0,103.73077791]
[1641421164512,7.92,151.12,151.0,103.73077791]
[1641421164712,9.9331,151.1,151.0,103.73077791]
[1641421164914,9.60253997,151.1,151.0,103.73077791]
[1641421165114,7.92,151.12,151.0,103.73077791]
[1641421165714,7.92,151.12,151.01,3.74391195]
[1641421165914,17.8522,151.12,151.01,3.74391195]
[1641421167316,0.07,151.11,151.01,3.74391195]
[1641421167515,9.9351,151.07,151.01,3.74391195]
[1641421167722,17.8551,151.07,151.01,3.74391195]
[1641421169218,17.8551,151.07,151.01,27.12304748]
[1641421169416,7.92,151.09,151.01,27.12304748]
[1641421169617,7.92,151.09,151.01,3.74391195]
[1641421169819,7.92,151.09,151.01,13.67451195]
[1641421170025,7.92,151.09,151.02,1.47315897]
[1641421170223,7.92,151.09,151.02,1.72315897]
[1641421170425,7.92,151.09,151.02,0.25]
[1641421170823,7.92,151.09,151.01,3.74391195]
[1641421171424,17.854,151.09,151.03,3.74391195]
[1641421171823,19.32715897,151.09,151.03,3.74391195]
[1641421172424,1.3520718,151.04,151.01,3.74391195]
[1641421172924,11.2892718,151.04,151.01,3.74391195]
[1641421173125,10.2892718,151.04,151.01,3.74391195]
[1641421173526,18.2092718,151.04,150.86,44.61300767]
[1641421173925,18.2092718,151.04,150.88,1.47315897]
[1641421174533,18.2092718,151.04,150.88,22.38039188]
[1641421174726,8.2720718,151.04,150.88,22.38039188]
[1641421174925,8.2720718,151.04,150.93,8.4361]
[1641421175625,8.2720718,151.04,150.9,24.8401]
[1641421175825,8.2720718,151.04,150.89,17.27178998]
[1641421176025,18.2093718,151.04,150.89,17.27178998]
[1641421177628,18.2093718,151.04,150.89,27.21038998]
[1641421178629,18.2093718,151.04,150.9,19.53060153]
[1641421178831,18.2093718,151.04,150.9,29.46940153]
[1641421179630,18.2093718,151.04,150.89,17.27178998]
[1641421179830,18.2093718,151.04,150.89,27.21158998]
[1641421180531,18.2093718,151.04,150.9,17.99751852]
[1641421181131,18.2093718,151.04,150.95,9.9369]
[1641421181532,18.2093718,151.04,150.96,0.25]
[1641421181734,18.2093718,151.04,150.95,9.9369]
[1641421182131,18.2093718,151.04,150.95,31.07481414]
[1641421182536,18.2093718,151.04,150.95,9.9369]
[1641421183133,18.2093718,151.04,150.93,9.9381]
[1641421183334,18.2093718,151.04,150.93,8.9381]
[1641421183532,18.2093718,151.04,150.93,27.68165561]
[1641421184535,18.2093718,151.04,150.93,6.0532]
[1641421185534,18.2093718,151.04,150.94,19.743255]
[1641421185838,18.2093718,151.04,150.94,29.680955]
[1641421186034,17.2093718,151.04,150.94,29.680955]
[1641421186435,17.2093718,151.04,150.94,9.9377]
[1641421188037,17.2093718,151.04,150.95,0.25]
[1641421188435,17.2093718,151.04,150.94,9.9377]
[1641421188937,17.2093718,151.04,150.91,33.1249]
[1641421189136,17.2093718,151.04,150.87,1.04]
[1641421189337,1.47315897,151.03,150.87,1.04]
[1641421189538,9.9411,150.98,150.88,9.9411]
[1641421189737,7.92,150.97,150.88,9.9411]
[1641421189938,7.92,150.97,150.85,19.12296807]
[1641421190137,7.92,150.97,150.86,0.25]
[1641421190337,7.92,150.97,150.86,20.58941469]
[1641421190538,9.9391,151.01,150.91,9.9391]
[1641421190739,98.97,151.07,150.92,20.99712245]
[1641421190941,7.92,151.06,150.92,22.72028142]
[1641421191141,7.92,151.05,150.92,1.72315897]
[1641421191339,0.07,151.1,150.93,7.80725957]
[1641421191541,9.9354,151.07,150.99,9.9348]
[1641421191742,37.53,151.18,150.94,31.84144566]
[1641421191743,32.1,151.18,150.94,31.84144566]
[1641421191939,0.07,151.17,150.95,100.5186]
[1641421192141,7.92,151.16,151.0,1.47315897]
[1641421192339,7.92,151.16,150.99,19.81580922]
[1641421192540,0.07,151.15,150.97,48.85595897]
[1641421192741,9.9346,151.08,151.0,9.9341]
[1641421192940,17.8546,151.08,151.0,9.9341]
[1641421193141,17.8546,151.08,150.95,77.3883]
[1641421193339,17.8546,151.08,150.92,1.47315897]
[1641421193539,17.8546,151.08,150.94,18.0811471]
[1641421193939,17.8546,151.08,150.94,28.0187471]
[1641421194143,17.8546,151.08,150.94,29.49190607]
[1641421194440,9.9346,151.08,150.94,11.41075897]
[1641421194841,10.0046,151.08,150.94,11.41075897]
[1641421195140,10.0046,151.08,150.94,1.47315897]
[1641421195342,10.5046,151.08,150.94,1.47315897]
[1641421195540,17.9246,151.08,150.94,1.47315897]
[1641421196141,18.4246,151.08,150.94,1.47315897]
[1641421196542,18.4246,151.08,150.95,18.67559465]
[1641421196745,18.4246,151.08,150.95,18.74559465]
[1641421196943,17.9246,151.08,150.95,18.74559465]
[1641421197744,17.9246,151.08,150.95,0.07]
[1641421198147,17.41907729,151.08,150.95,10.0071]
[1641421198852,17.41907729,151.08,150.96,17.79606093]
[1641421199546,17.41907729,151.08,150.96,27.73246093]
[1641421199948,17.41907729,151.08,150.96,9.9364]
[1641421200749,17.41907729,151.08,150.97,0.07]
[1641421201150,17.41907729,151.08,150.97,0.32]
[1641421201849,17.41907729,151.08,150.96,27.86676963]
[1641421203453,17.34907729,151.08,150.96,27.86676963]
[1641421203654,16.84907729,151.08,150.96,9.26595017]
[1641421204280,16.84907729,151.08,150.94,9.9376]
[1641421204479,16.91907729,151.08,150.94,9.9376]
[1641421204682,0.25,151.07,150.95,18.40028727]
[1641421204884,9.9381,151.03,150.95,18.40028727]
[1641421205080,7.5199,151.03,150.94,9.9376]
[1641421205281,7.5199,151.03,150.75,51.85183948]
[1641421205282,7.5199,151.03,150.89,361.6340437]
[1641421205482,7.5199,151.03,150.91,0.07]
[1641421206082,7.5199,151.03,150.91,18.47812293]
[1641421206484,7.5199,151.03,150.91,28.34792293]
[1641421208786,33.1276,151.07,150.91,37.7410819]
[1641421208984,9.9372,151.05,150.91,37.7410819]
[1641421209183,9.9372,151.05,150.91,62.5838819]
[1641421209586,9.9372,151.05,150.92,0.25]
[1641421209784,9.9372,151.05,150.95,9.9368]
[1641421209986,9.9372,151.05,150.96,21.76800369]
[1641421210187,9.9372,151.05,150.96,22.01800369]
[1641421211186,9.9355,151.07,150.97,7.92]
[1641421211587,9.9355,151.07,150.98,0.25]
[1641421212790,7.92,151.14,150.98,0.25]
[1641421212988,8.42,151.14,150.98,6.22]
[1641421213189,8.42,151.14,150.99,17.69166981]
[1641421213587,0.07,151.12,150.99,17.69166981]
[1641421213789,9.9368,151.06,150.99,17.69166981]
[1641421213990,9.9368,151.06,150.96,9.9357]
[1641421214388,9.9368,151.06,150.95,7.92]
[1641421214993,9.9368,151.06,150.96,17.55871786]
[1641421218193,9.9368,151.06,150.94,72.4719]
[1641421218392,9.9368,151.06,150.95,0.25]
[1641421218592,10.1968,151.06,150.95,0.25]
[1641421218993,9.9368,151.06,150.95,0.25]
[1641421219797,9.9386,151.02,150.95,0.25]
[1641421220598,33.1251,151.07,150.95,0.25]
[1641421220999,9.9377,151.03,150.95,0.25]
[1641421222401,9.9368,151.05,150.95,0.25]
[1641421223003,33.1195,151.1,150.95,0.25]
[1641421223200,33.1195,151.1,150.95,30.9247]
[1641421223602,9.9354,151.07,150.95,40.8613]
[1641421224201,10.1954,151.07,150.95,40.8613]
[1641421224404,10.1954,151.07,150.95,40.6113]
[1641421225803,10.1954,151.07,150.98,9.9347]
[1641421225804,9.9354,151.07,150.98,9.9347]
[1641421226005,9.9338,151.09,150.99,18.5549233]
[1641421226204,9.9338,151.09,151.0,0.25]
[1641421226402,33.1126,151.13,151.0,0.25]
[1641421226804,56.2619,151.14,151.0,10.1832]
[1641421227205,9.9339,151.09,151.0,10.1832]
[1641421227602,10.1939,151.09,151.0,10.1832]
[1641421227805,0.26,151.09,151.0,10.1832]
[1641421228003,33.1102,151.14,151.0,10.1832]
[1641421228206,9.9316,151.13,151.0,10.1832]
[1641421228405,9.9316,151.13,151.02,19.73166963]
[1641421228604,9.9316,151.13,151.05,17.21010391]
[1641421228804,33.1052,151.17,151.04,9.9306]
[1641421229006,33.1052,151.17,151.0,5.34848409]
[1641421229205,9.9329,151.11,150.95,33.1125]
[1641421229408,0.5,151.11,150.92,5.61830201]
[1641421229606,0.76,151.11,150.94,9.937]
[1641421229807,1.97315897,151.11,150.95,21.58362699]
[1641421230033,2.23315897,151.11,150.95,21.58362699]
[1641421230207,9.9383,151.03,150.95,21.58362699]
[1641421230709,10.1983,151.03,150.95,21.58362699]
[1641421233510,9.9383,151.03,150.95,21.58362699]
[1641421233711,7.92,151.1,150.95,21.58362699]
[1641421233911,9.9367,151.05,150.95,21.58362699]
[1641421234712,33.059,151.09,150.95,21.58362699]
[1641421234913,7.92,151.1,150.95,21.58362699]
[1641421235115,7.92,151.1,150.96,0.25]
[1641421235513,7.92,151.1,150.96,23.5009]
[1641421236014,8.18,151.1,150.96,23.5009]
[1641421236814,9.9347,151.08,150.98,17.7414196]
[1641421237014,10.1947,151.08,150.98,17.7414196]
[1641421238240,9.9347,151.08,150.98,17.7414196]
[1641421239839,9.9337,151.1,150.98,17.7414196]
[1641421240039,9.9337,151.1,150.99,48.2651]
[1641421240240,33.1138,151.13,150.99,48.2651]
[1641421240440,33.1138,151.13,150.99,126.3346]
[1641421240942,9.9337,151.1,151.0,0.25]
[1641421241340,9.9337,151.1,151.0,10.1832]
[1641421241539,9.9337,151.1,151.01,18.16651226]
[1641421242044,9.9337,151.1,151.02,0.25]
[1641421242240,10.1937,151.1,151.01,18.16651226]
[1641421243041,10.1937,151.1,151.0,9.9332]
[1641421244049,10.1937,151.1,151.01,22.727961]
[1641421244243,9.9337,151.1,151.01,32.660461]
[1641421244445,9.9322,151.12,151.01,32.660461]
[1641421245447,9.9322,151.12,151.02,0.25]
[1641421245644,9.9309,151.14,151.04,19.12731275]
[1641421246045,9.9309,151.14,151.05,0.25]
[1641421247649,9.9309,151.14,151.04,29.05831275]
[1641421248349,9.9296,151.16,151.04,29.05831275]
[1641421248550,9.9296,151.16,151.05,24.2928]
[1641421248752,9.9296,151.16,151.07,21.99784863]
[1641421249552,9.9296,151.16,151.06,9.9293]
[1641421250352,10.1896,151.16,151.06,9.9293]
[1641421250561,10.1896,151.16,151.07,18.87066588]
[1641421250754,9.9296,151.16,151.07,28.79936588]
[1641421251160,9.9296,151.16,151.08,0.25]
[1641421252057,10.1896,151.16,151.08,0.25]
[1641421253059,9.9283,151.18,151.08,10.1783]
[1641421253658,9.9283,151.18,151.08,9.9283]
[1641421253861,9.9283,151.18,151.09,1.47315897]
[1641421254158,9.9283,151.18,151.1,19.33067697]
[1641421255161,10.1883,151.18,151.1,19.33067697]
[1641421256465,10.1883,151.18,151.04,33.7821]
[1641421256663,9.9283,151.18,151.04,33.7821]
[1641421256863,0.25,151.17,151.04,33.7821]
[1641421257064,9.9313,151.13,151.04,23.8516]
[1641421257463,9.9313,151.13,151.05,19.86453613]
[1641421257863,10.1913,151.13,151.05,19.86453613]
[1641421258864,10.1913,151.13,151.04,23.8516]
[1641421259067,0.25,151.12,151.01,3.74387768]
[1641421259263,0.25,151.12,151.0,3.74387768]
[1641421259463,9.936,151.06,151.0,3.74387768]
[1641421259863,10.196,151.06,151.0,27.33113481]
[1641421260469,10.196,151.06,151.0,3.74387768]
[1641421260669,10.196,151.06,150.96,3.74387768]
[1641421261066,10.196,151.06,150.96,13.67927768]
[1641421261264,0.26,151.06,150.96,13.67927768]
[1641421261467,9.86157828,151.08,150.97,19.24339831]
[1641421261965,3.42915116,151.14,150.97,24.22039831]
[1641421262166,33.1145,151.12,150.97,34.15529831]
[1641421262367,11.34915116,151.15,150.97,37.89917599]
[1641421262565,3.42915116,151.15,150.97,38.15917599]
[1641421262964,3.42915116,151.15,150.97,42.88845029]
[1641421263164,3.42915116,151.15,150.98,22.7741]
[1641421263366,4.81399446,151.18,151.06,18.39044493]
[1641421263367,33.1023,151.18,151.06,18.39044493]
[1641421263567,33.1023,151.18,151.07,0.25]
[1641421264178,9.9301,151.15,151.07,0.25]
[1641421264774,9.9301,151.15,151.04,0.25]
[1641421265176,9.9301,151.15,151.03,3.74387768]
[1641421265375,10.1901,151.15,151.02,24.86800674]
[1641421266180,0.25,151.14,151.02,21.12412906]
[1641421266380,9.9338,151.1,151.02,21.12412906]
[1641421266577,9.9338,151.1,150.99,3.74387768]
[1641421266578,10.1938,151.1,150.99,3.74387768]
[1641421267178,0.25,151.09,150.98,3.74387768]
[1641421267380,0.26,151.1,150.98,3.74387768]
[1641421267579,64.44,151.13,150.99,23.73257581]
[1641421267778,64.94,151.13,150.99,23.73257581]
[1641421268178,68.36915116,151.13,150.99,23.73257581]
[1641421268778,9.9367,151.05,150.99,23.73257581]
[1641421268979,10.1967,151.05,150.99,23.73257581]
[1641421269181,0.26,151.05,150.99,23.73257581]
[1641421269382,52.87992911,151.12,150.99,23.73257581]
[1641421269579,6.89172911,151.12,150.99,23.73257581]
[1641421269781,9.9348,151.1,150.99,33.66697581]
[1641421270982,9.9348,151.1,151.0,3.74444506]
[1641421271402,9.9332,151.12,151.0,18.70804506]
[1641421271602,9.9332,151.12,151.01,0.25]
[1641421272201,3.42915116,151.16,151.01,0.25]
[1641421272404,13.36005116,151.16,151.01,10.1828]
[1641421272608,13.36005116,151.16,151.02,17.41159027]
[1641421272804,13.36005116,151.16,151.02,119.88379027]
[1641421273004,9.9309,151.16,151.03,0.25]
[1641421273705,10.1909,151.16,151.03,0.25]
[1641421273907,10.1909,151.16,151.03,10.1815]
[1641421274704,10.1909,151.16,151.03,9.9315]
[1641421275505,9.9326,151.13,151.03,9.9315]
[1641421275906,10.1926,151.13,151.03,9.9315]
[1641421276108,10.1926,151.13,151.02,17.41159027]
[1641421276709,11.97252457,151.13,151.03,1.87220119]
[1641421277709,11.97252457,151.13,151.02,17.41159027]
[1641421277710,1.77992457,151.11,151.02,17.41159027]
[1641421277910,9.9353,151.09,151.02,17.41159027]
[1641421278108,10.1953,151.09,151.02,17.41159027]
[1641421278708,10.1953,151.09,151.01,1.87220119]
[1641421279718,9.9353,151.09,151.02,17.50794777]
[1641421281322,10.1953,151.09,151.02,17.50794777]
[1641421282122,0.25,151.08,151.02,17.50794777]
[1641421282328,9.9365,151.07,151.02,17.50794777]
[1641421282550,10.1965,151.07,151.01,1.87220119]
[1641421282730,10.1965,151.07,151.0,1.87220119]
[1641421283524,1.77992457,151.1,151.01,18.80203958]
[1641421283723,9.9353,151.09,151.01,18.80203958]
[1641421284730,1.77992457,151.1,151.01,18.80203958]
[1641421284932,11.71392457,151.11,151.02,1.87220119]
[1641421285129,1.77992457,151.11,151.02,1.87220119]
[1641421285529,1.77992457,151.11,151.03,0.25]
[1641421285732,1.77992457,151.14,151.03,0.25]
[1641421286734,1.77992457,151.16,151.03,0.25]
[1641421286934,9.9317,151.15,151.05,18.54503801]
[1641421287735,10.1917,151.15,151.05,18.54503801]
[1641421289840,11.97162457,151.15,151.05,18.54503801]
[1641421290056,11.71162457,151.15,151.05,18.54503801]
[1641421290656,9.9317,151.15,151.05,18.54503801]
[1641421291557,11.71162457,151.15,151.05,18.54503801]
[1641421292156,11.97162457,151.15,151.05,18.54503801]
[1641421292659,1.77992457,151.14,151.05,18.54503801]
[1641421292858,1.77992457,151.14,151.02,87.0945]
[1641421293159,9.9335,151.11,151.02,87.0945]
[1641421293658,10.1935,151.11,151.02,87.0945]
[1641421293858,10.1935,151.11,151.03,21.8668338]
[1641421294358,9.9335,151.11,151.03,21.8668338]
[1641421294559,9.9325,151.13,151.03,31.7993338]
[1641421296364,1.77992457,151.14,151.04,1.72315897]
[1641421296562,1.77992457,151.14,151.07,9.9297]
[1641421296762,1.77992457,151.14,151.08,21.62116166]
[1641421297563,1.77992457,151.14,151.04,1.72315897]
[1641421297775,3.42915116,151.18,151.08,9.9288]
[1641421297776,1.77992457,151.17,151.08,9.9288]
[1641421297964,1.77992457,151.17,151.05,33.0957]
[1641421298166,1.77992457,151.17,151.06,0.25]
[1641421298365,1.77992457,151.17,151.06,1.72315897]
[1641421298564,1.77992457,151.17,151.07,17.08724723]
[1641421298968,1.77992457,151.17,151.08,0.25]
[1641421299166,9.9285,151.19,151.1,9.928]
[1641421299366,9.9285,151.19,151.1,28.52758101]
[1641421299565,10.1885,151.19,151.1,18.59958101]
[1641421299967,10.1885,151.19,151.05,1.87220119]
[1641421300173,10.1885,151.19,151.06,1.87220119]
[1641421300573,0.25,151.18,151.06,1.87220119]
[1641421300770,9.9313,151.14,151.06,1.87220119]
[1641421300969,10.1913,151.14,151.07,19.5533613]
[1641421301969,9.9313,151.14,151.07,19.5533613]
[1641421302573,9.9313,151.14,151.05,9.9313]
[1641421302769,9.9313,151.14,151.06,0.25]
[1641421302972,9.9313,151.14,151.06,10.1807]
[1641421303170,9.9313,151.14,151.06,9.9307]
[1641421303370,9.9313,151.14,151.04,171.6474]
[1641421303570,10.1913,151.14,151.06,18.31461507]
[1641421303972,11.97122457,151.14,151.06,18.31461507]
[1641421304670,1.77992457,151.13,151.06,18.31461507]
[1641421305070,2.03992457,151.13,151.06,18.31461507]
[1641421305873,2.03992457,151.13,151.06,28.24531507]
[1641421306472,1.77992457,151.13,151.06,28.24531507]
[1641421306673,1.77992457,151.14,151.06,28.24531507]
[1641421307873,1.77992457,151.13,151.06,28.24531507]
[1641421308081,1.77992457,151.13,151.06,18.31461507]
[1641421308974,2.03992457,151.13,151.06,18.31461507]
[1641421309177,2.03992457,151.13,151.04,1.87220119]
[1641421309373,11.97182457,151.13,151.04,1.87220119]
[1641421309776,1.77992457,151.11,151.02,2.87220119]
[1641421310077,2.03992457,151.11,151.02,2.87220119]
[1641421310274,2.03992457,151.11,151.03,23.04006735]
[1641421310476,2.03992457,151.11,151.03,24.51322632]
[1641421310875,1.77992457,151.1,151.03,24.51322632]
[1641421311577,1.77992457,151.1,151.04,0.25]
[1641421311776,9.933,151.12,151.04,0.25]
[1641421312177,10.193,151.12,151.04,0.25]
[1641421313080,10.193,151.12,151.04,2.12220119]
[1641421313282,0.26,151.12,151.04,2.12220119]
[1641421313579,11.97172457,151.13,151.04,2.12220119]
[1641421313780,11.71172457,151.13,151.04,2.12220119]
[1641421314779,11.71172457,151.13,151.04,12.05420119]
[1641421314981,11.97172457,151.13,151.04,12.05420119]
[1641421315984,1.77992457,151.14,151.04,12.05420119]
[1641421316185,1.77992457,151.14,151.05,24.00615897]
[1641421316383,1.77992457,151.14,151.09,9.9273]
[1641421316583,1.77992457,151.14,151.1,23.34436858]
[1641421317085,1.77992457,151.17,151.1,23.34436858]
[1641421317884,1.77992457,151.19,151.1,23.34436858]
[1641421318091,11.70832457,151.19,151.1,23.34436858]
[1641421318484,11.96832457,151.19,151.1,23.09436858]
[1641421318687,11.70832457,151.19,151.1,23.09436858]